bitfinex/quotes_BTCUSD_20240803
["timestamp","ask_amount","ask_price","bid_price","bid_amount"]
[1722649097343,0.50028183,60921.0,60920.0,0.00922]
[1722649097904,0.37717183,60921.0,60920.0,0.00922]
[1722649098100,0.50028183,60921.0,60920.0,0.00922]
[1722649098306,0.74650183,60921.0,60920.0,0.00922]
[1722649098702,0.37717183,60921.0,60920.0,0.00922]
[1722649099353,0.17049424,60921.0,60920.0,0.00922]
[1722649099525,0.002,60927.0,60920.0,0.23047924]
[1722649099739,0.17048372,60926.0,60921.0,0.23621118]
[1722649099950,0.17048372,60926.0,60922.0,0.15555194]
[1722649100265,0.12307,60941.0,60922.0,0.15555194]
[1722649100266,0.002,60933.0,60923.0,0.15745924]
[1722649100465,0.17045835,60932.0,60929.0,0.07875194]
[1722649100677,0.47251164,60934.0,60930.0,0.15745924]
[1722649100842,0.17045824,60933.0,60931.0,0.1406]
[1722649101047,0.0052664,60932.0,60931.0,0.1406]
[1722649101268,0.17572642,60932.0,60931.0,0.1406]
[1722649101426,0.17572642,60932.0,60921.0,0.1406]
[1722649101427,0.002,60922.0,60921.0,0.1406]
[1722649101634,0.17246002,60922.0,60921.0,0.39805924]
[1722649101877,0.17246002,60922.0,60921.0,0.1406]
[1722649102298,0.17246002,60922.0,60921.0,0.0638]
[1722649102299,0.17249624,60922.0,60921.0,0.0638]
[1722649102527,0.17249624,60922.0,60914.0,0.0638]
[1722649102528,0.002,60921.0,60914.0,0.0638]
[1722649102847,0.31217144,60921.0,60914.0,0.0638]
[1722649103019,0.38037584,60921.0,60914.0,0.0638]
[1722649103784,0.17249624,60921.0,60914.0,0.0638]
[1722649103989,0.17049624,60921.0,60920.0,0.16667924]
[1722649104260,0.002,60921.0,60920.0,0.16667924]
[1722649105098,0.17049624,60923.0,60920.0,0.16667924]
[1722649105299,0.002,60921.0,60920.0,0.16667924]
[1722649105500,0.17249624,60921.0,60920.0,0.16667924]
[1722649106114,0.002,60921.0,60920.0,0.16667924]
[1722649106322,0.17248393,60921.0,60920.0,0.16667924]
[1722649107141,0.6782144,60921.0,60920.0,0.00922]
[1722649107368,1.50371336,60921.0,60920.0,0.00922]
[1722649107569,2.09205245,60921.0,60920.0,0.00922]
[1722649108464,2.11212795,60921.0,60920.0,0.00922]
[1722649109254,2.08212795,60921.0,60920.0,0.00922]
[1722649109452,1.00240173,60921.0,60920.0,0.00922]
[1722649109634,1.17296165,60921.0,60920.0,0.00922]
[1722649109840,0.9059676,60921.0,60920.0,0.00922]
[1722649110048,0.92674165,60921.0,60920.0,0.00922]
[1722649110259,0.54779176,60921.0,60920.0,0.00922]
[1722649110481,0.91712176,60921.0,60920.0,0.00922]
[1722649110689,1.41912536,60921.0,60920.0,0.00922]
[1722649110907,1.5765846,60921.0,60920.0,0.00922]
[1722649111110,2.12978856,60921.0,60920.0,0.00922]
[1722649111361,1.6427339,60921.0,60920.0,0.00922]
[1722649111575,0.80357536,60921.0,60920.0,0.00922]
[1722649111956,0.54779176,60921.0,60920.0,0.00922]
[1722649112762,0.54775377,60921.0,60920.0,0.00922]
[1722649112942,0.54773477,60921.0,60920.0,0.15422]
[1722649113179,0.34111985,60921.0,60920.0,0.31167924]
[1722649113342,0.17055992,60921.0,60920.0,0.41167924]
[1722649114720,0.17055992,60921.0,60920.0,0.40667924]
[1722649115370,0.17055992,60921.0,60920.0,0.41667924]
[1722649115623,0.17055992,60921.0,60920.0,0.42667924]
[1722649115837,0.10395992,60921.0,60920.0,0.42667924]
[1722649116040,0.10395992,60921.0,60920.0,0.41667924]
[1722649116891,0.10395992,60921.0,60920.0,0.40667924]
[1722649117249,0.10595992,60921.0,60920.0,0.30667924]
[1722649117448,0.27643575,60921.0,60920.0,0.30667924]
[1722649117808,0.27443575,60921.0,60920.0,0.30667924]
[1722649118101,0.10395992,60921.0,60920.0,0.30667924]
[1722649119661,0.00083,60933.0,60920.0,0.40667924]
[1722649119859,0.00083,60933.0,60923.0,0.07875194]
[1722649119860,0.64297323,60932.0,60923.0,0.07875194]
[1722649120063,0.002,60928.0,60924.0,0.16074161]
[1722649120470,0.002,60932.0,60924.0,0.16074161]
[1722649120826,0.642973,60931.0,60925.0,0.1]
[1722649121037,0.17046136,60930.0,60926.0,0.15745924]
[1722649121237,0.17372776,60929.0,60920.0,0.14922]
[1722649121469,0.002,60922.0,60921.0,0.15745924]
[1722649121671,0.002,60925.0,60921.0,0.15745924]
[1722649121875,0.002,60928.0,60921.0,0.16074186]
[1722649122112,0.17046848,60927.0,60923.0,0.07875194]
[1722649122314,0.00083,60933.0,60924.0,0.15745924]
[1722649122315,0.002,60932.0,60924.0,0.15745924]
[1722649122519,0.17046138,60931.0,60925.0,0.00328234]
[1722649122720,0.002,60932.0,60926.0,0.15745924]
[1722649123487,0.17046126,60931.0,60926.0,0.15745924]
[1722649123689,0.17046126,60931.0,60930.0,0.07875194]
[1722649123897,0.00083,60933.0,60930.0,0.23621118]
[1722649124117,0.00083,60933.0,60931.0,0.15745924]
[1722649124877,0.00083,60933.0,60932.0,0.145]
[1722649124996,0.00083,60933.0,60932.0,0.3257411]
[1722649125185,0.47251164,60952.0,60943.0,0.145]
[1722649125387,0.47251164,60952.0,60947.0,0.07875194]
[1722649125607,0.47251164,60952.0,60948.0,0.15745924]
[1722649125814,0.002,60955.0,60948.0,0.15745924]
[1722649126030,0.24602,60971.0,60948.0,0.15745924]
[1722649126031,0.17039857,60954.0,60948.0,0.15745924]
[1722649126255,0.384112,60973.0,60948.0,0.15745924]
[1722649126256,0.002,60956.0,60949.0,0.00328118]
[1722649126457,0.002,60956.0,60950.0,0.15745924]
[1722649126686,0.002,60958.0,60950.0,0.15745924]
[1722649126840,0.002,60963.0,60952.0,0.07875194]
[1722649127103,0.47251164,60969.0,60953.0,0.16074002]
[1722649127104,0.002,60960.0,60953.0,0.16074002]
[1722649127256,0.0032664,60968.0,60954.0,0.245]
[1722649127257,0.002,60966.0,60954.0,0.245]
[1722649127457,0.002,60969.0,60959.0,0.07875194]
[1722649127683,0.002,60969.0,60960.0,0.15745924]
[1722649127684,0.17035866,60968.0,60960.0,0.15745924]
[1722649127877,0.002,60969.0,60960.0,0.15745924]
[1722649128764,0.002,60970.0,60961.0,0.18203247]
[1722649128969,0.002,60974.0,60968.0,0.07875194]
[1722649129179,0.08891595,60994.0,60971.0,0.2077]
[1722649129180,0.47251164,60985.0,60971.0,0.2077]
[1722649129349,0.01016401,60994.0,60977.0,0.12791263]
[1722649129548,0.47251164,60986.0,60984.0,0.04916069]
[1722649129762,0.01016401,60994.0,60984.0,0.04916069]
[1722649130133,0.002,60985.0,60982.0,0.1]
[1722649130341,0.01016401,60994.0,60989.0,0.04916069]
[1722649130513,0.01016401,60994.0,60982.0,0.1]
[1722649130514,0.01016401,60994.0,60985.0,0.1]
[1722649130724,0.01016401,60994.0,60986.0,0.1437]
[1722649131124,0.002,60987.0,60986.0,0.1437]
[1722649131402,0.002,60989.0,60986.0,0.2437]
[1722649131530,0.002,60987.0,60986.0,0.1437]
[1722649131734,0.002,60987.0,60986.0,0.40115924]
[1722649131932,0.002,60987.0,60986.0,0.30115924]
[1722649132541,0.002,60983.0,60971.0,0.2077]
[1722649132743,0.25609001,60994.0,60972.0,0.16073916]
[1722649132744,0.002,60980.0,60972.0,0.16073916]
[1722649132945,0.002,60979.0,60972.0,0.2394911]
[1722649133147,0.002,60979.0,60972.0,0.15745924]
[1722649133591,0.002,60979.0,60973.0,0.00327967]
[1722649133904,0.002,60979.0,60974.0,0.15745924]
[1722649134082,0.002,60979.0,60975.0,0.00327967]
[1722649134286,0.002,60977.0,60976.0,0.15745924]
[1722649134712,0.002,60979.0,60976.0,0.15745924]
[1722649135049,0.002,60991.0,60978.0,0.07875194]
[1722649135243,0.01216401,60994.0,60988.0,0.07875194]
[1722649135446,0.002,60993.0,60989.0,0.15745924]
[1722649135647,0.002,60990.0,60989.0,0.15745924]
[1722649135859,0.002,60991.0,60989.0,0.15745924]
[1722649136394,0.002,60993.0,60989.0,0.15745924]
[1722649136576,0.002,60990.0,60989.0,0.15745924]
[1722649136996,0.01016401,60994.0,60977.0,0.1]
[1722649136997,0.002,60984.0,60977.0,0.1]
[1722649137315,0.122967,60992.0,60973.0,0.04916069]
[1722649137316,0.002,60981.0,60980.0,0.15745924]
[1722649137517,0.002,60980.0,60979.0,0.15745924]
[1722649137724,0.002,60974.0,60973.0,0.04916069]
[1722649137879,0.002,60974.0,60973.0,0.20661993]
[1722649138078,0.002,60973.0,60972.0,0.0824]
[1722649138320,0.002,60973.0,60972.0,0.15745924]
[1722649138515,0.002,60967.0,60966.0,0.0631]
[1722649138740,0.002,60967.0,60966.0,0.15745924]
[1722649140935,0.002,60959.0,60956.0,0.0824]
[1722649141181,0.002,60959.0,60952.0,0.0631]
[1722649141390,0.002,60953.0,60952.0,0.15745924]
[1722649142324,0.00967536,60953.0,60952.0,0.15745924]
[1722649142534,0.002,60953.0,60952.0,0.15745924]
[1722649142737,0.002,60943.0,60942.0,0.0631]
[1722649143122,0.0032664,60962.0,60935.0,0.0631]
[1722649143123,0.002,60942.0,60935.0,0.0631]
[1722649143277,0.002,60942.0,60936.0,0.15745924]
[1722649143480,0.002,60937.0,60936.0,0.15745924]
[1722649144253,0.002,60935.0,60931.0,0.0824]
[1722649144462,0.002,60939.0,60935.0,0.00328204]
[1722649144669,0.002,60942.0,60936.0,0.15745924]
[1722649144870,0.0032664,60948.0,60936.0,0.15745924]
[1722649144871,0.002,60939.0,60936.0,0.15745924]
[1722649145089,0.002,60948.0,60937.0,0.00328183]
[1722649145249,0.0792,60960.0,60937.0,0.00328183]
[1722649145250,0.002,60950.0,60948.0,0.0631]
[1722649145450,0.47251164,60950.0,60949.0,0.24314029]
[1722649145665,0.002,60953.0,60949.0,0.23985924]
[1722649145835,0.002,60950.0,60949.0,0.23985924]
[1722649146034,0.002,60952.0,60949.0,0.23985924]
[1722649146249,0.002,60956.0,60949.0,0.24314029]
[1722649146418,0.0032664,60962.0,60949.0,0.23985924]
[1722649146419,0.002,60953.0,60949.0,0.23985924]
[1722649146618,0.002,60953.0,60949.0,0.15745924]
[1722649147009,0.002,60950.0,60949.0,0.15745924]
[1722649147529,0.002,60960.0,60949.0,0.15745924]
[1722649147728,0.002,60960.0,60955.0,0.1407]
[1722649148062,0.00157439,60966.0,60956.0,0.15745924]
[1722649148063,0.002,60958.0,60956.0,0.15745924]
[1722649148463,0.17039308,60957.0,60949.0,0.04916069]
[1722649148629,0.002,60951.0,60950.0,0.15745924]
[1722649148842,0.002,60955.0,60950.0,0.15745924]
[1722649149070,0.002,60959.0,60951.0,0.00328097]
[1722649149419,0.00083,60967.0,60952.0,0.15745924]
[1722649149420,0.002,60960.0,60952.0,0.15745924]
[1722649149634,0.002,60958.0,60952.0,0.15745924]
[1722649149843,0.002,60953.0,60952.0,0.15745924]
[1722649150050,0.002,60947.0,60946.0,0.1407]
[1722649150268,0.002,60947.0,60946.0,0.29815924]
[1722649150462,0.17241799,60947.0,60946.0,0.15745924]
[1722649151199,0.17041799,60947.0,60946.0,0.15745924]
[1722649151403,0.17041799,60948.0,60946.0,0.15745924]
[1722649151614,0.002,60956.0,60947.0,0.15745924]
[1722649151823,0.002,60956.0,60948.0,0.00328115]
[1722649151824,0.17040606,60955.0,60948.0,0.00328115]
[1722649152033,0.17040606,60955.0,60949.0,0.15745924]
[1722649152745,0.17240606,60955.0,60949.0,0.15745924]
[1722649152990,0.00083,60967.0,60954.0,0.06]
[1722649152991,0.002,60957.0,60954.0,0.06]
[1722649153165,0.002,60957.0,60955.0,0.15745924]
[1722649153410,0.17039692,60956.0,60955.0,0.15745924]
[1722649153581,0.17239692,60956.0,60955.0,0.15745924]
[1722649154609,0.17239692,60956.0,60948.0,0.10916069]
[1722649154610,0.002,60949.0,60948.0,0.10916069]
[1722649154805,0.002,60949.0,60948.0,0.36661993]
[1722649155442,0.002,60954.0,60948.0,0.36661993]
[1722649155609,0.17039766,60953.0,60949.0,0.25745924]
[1722649156577,0.002,60954.0,60949.0,0.25745924]
[1722649156786,0.17040515,60952.0,60949.0,0.25745924]
[1722649156921,0.002,60954.0,60949.0,0.25745924]
[1722649157324,0.17040357,60953.0,60949.0,0.25745924]
[1722649157753,0.002,60950.0,60949.0,0.25745924]
[1722649158167,0.002,60944.0,60937.0,0.1424]
[1722649158380,0.0032664,60950.0,60938.0,0.15745924]
[1722649158381,0.002,60942.0,60938.0,0.15745924]
[1722649158580,0.002,60939.0,60938.0,0.15745924]
[1722649159135,0.17244128,60939.0,60938.0,0.15745924]
[1722649159360,0.002,60934.0,60930.0,0.1424]
[1722649159605,0.002,60934.0,60933.0,0.15837224]
[1722649160011,0.002,60934.0,60933.0,0.000913]
[1722649160226,0.248167,60934.0,60933.0,0.000913]
[1722649160420,0.4319269,60934.0,60933.0,0.000913]
[1722649160692,0.6780932,60934.0,60933.0,0.000913]
[1722649161283,1.2467272,60934.0,60933.0,0.000913]
[1722649161679,1.50248121,60934.0,60933.0,0.000913]
[1722649161840,1.2467272,60934.0,60933.0,0.000913]
[1722649162041,1.50248204,60934.0,60933.0,0.000913]
[1722649162258,1.2467272,60934.0,60933.0,0.000913]
[1722649162458,1.50248517,60934.0,60933.0,0.000913]
[1722649162740,2.02531141,60934.0,60933.0,0.000913]
[1722649162947,2.12531141,60934.0,60933.0,0.000913]
[1722649163155,2.32993788,60934.0,60933.0,0.000913]
[1722649164494,2.32993788,60934.0,60920.0,0.00422]
[1722649164495,0.86177,60921.0,60920.0,0.00422]
[1722649164712,1.1706132,60921.0,60920.0,0.00422]
[1722649164884,0.9243932,60921.0,60920.0,0.00422]
[1722649165493,0.4319532,60921.0,60920.0,0.00422]
[1722649165723,0.9243932,60921.0,60920.0,0.00422]
[1722649166062,1.1706132,60921.0,60920.0,0.00422]
[1722649166325,1.45730376,60921.0,60920.0,0.00422]
[1722649166571,2.18780474,60921.0,60920.0,0.00422]
[1722649166742,2.18794299,60921.0,60920.0,0.00422]
[1722649167388,1.130134,60913.0,60912.0,0.00922]
[1722649167599,1.6833868,60913.0,60912.0,0.00922]
[1722649167814,2.13855482,60913.0,60912.0,0.00922]
[1722649168030,2.13858619,60913.0,60912.0,0.00922]
[1722649168407,2.13858619,60913.0,60906.0,0.00922]
[1722649168408,1.140246,60907.0,60906.0,0.00922]
[1722649168741,1.36109225,60907.0,60906.0,0.00922]
[1722649168944,0.30905873,60907.0,60906.0,0.00922]
[1722649169150,0.17258818,60907.0,60906.0,0.00922]
[1722649169697,0.54200318,60907.0,60906.0,0.00922]
[1722649169899,0.17258818,60907.0,60906.0,0.00922]
[1722649170224,0.78828018,60907.0,60906.0,0.00922]
[1722649170576,0.54200318,60907.0,60906.0,0.00922]
[1722649170776,0.29572618,60907.0,60906.0,0.00922]
[1722649170901,0.29899258,60907.0,60906.0,0.00922]
[1722649171125,0.54197366,60907.0,60906.0,0.00922]
[1722649171913,0.78825066,60907.0,60906.0,0.00922]
[1722649172126,0.67842603,60907.0,60906.0,0.00922]
[1722649172345,0.30901103,60907.0,60906.0,0.00922]
[1722649172577,0.002,60913.0,60906.0,0.16667924]
[1722649172769,0.083,60934.0,60906.0,0.16667924]
[1722649172770,0.002,60916.0,60907.0,0.29934245]
[1722649173005,0.002,60917.0,60908.0,0.07875194]
[1722649173176,0.002,60917.0,60907.0,0.29934245]
[1722649173177,0.002,60914.0,60909.0,0.15745924]
[1722649173314,0.07875194,60933.0,60909.0,0.15745924]
[1722649173315,0.002,60917.0,60910.0,0.00328305]
[1722649173520,0.002,60917.0,60907.0,0.1386]
[1722649173521,0.002,60917.0,60911.0,0.15745924]
[1722649173921,0.002,60915.0,60911.0,0.15745924]
[1722649174165,0.002,60917.0,60911.0,0.15745924]
[1722649174342,0.00484079,60930.0,60915.0,0.07875194]
[1722649174343,0.002,60919.0,60915.0,0.07875194]
[1722649174557,0.002,60919.0,60916.0,0.15745924]
[1722649174731,0.0032664,60929.0,60916.0,0.15745924]
[1722649174732,0.002,60917.0,60916.0,0.15745924]
[1722649175308,0.002,60919.0,60916.0,0.15745924]
[1722649175620,0.246171,60934.0,60916.0,0.15745924]
[1722649175621,0.002,60930.0,60919.0,0.083]
[1722649175805,0.002,60933.0,60924.0,0.07875194]
[1722649175974,0.47251164,60938.0,60919.0,0.083]
[1722649175975,0.002,60934.0,60925.0,0.16074148]
[1722649176183,0.002,60933.0,60925.0,0.16074148]
[1722649176403,0.002,60936.0,60926.0,0.07875194]
[1722649176609,0.312502,60951.0,60927.0,0.30934135]
[1722649176610,0.002,60937.0,60927.0,0.30934135]
[1722649176771,0.002,60939.0,60927.0,0.30934135]
[1722649177492,0.002,60942.0,60933.0,0.07875194]
[1722649177856,0.002,60947.0,60935.0,0.1486]
[1722649178130,0.002,60947.0,60936.0,0.16074078]
[1722649178704,0.002,60943.0,60936.0,0.15745924]
[1722649178777,0.002,60940.0,60936.0,0.15745924]
[1722649178973,0.002,60941.0,60936.0,0.15745924]
[1722649179149,0.002,60943.0,60936.0,0.16074095]
[1722649179367,0.002,60943.0,60936.0,0.23949289]
[1722649179563,0.002,60950.0,60937.0,0.14916069]
[1722649179744,0.07875194,60966.0,60937.0,0.14916069]
[1722649179745,0.47451164,60954.0,60939.0,0.1486]
[1722649179939,0.002,60954.0,60943.0,0.07875194]
[1722649180140,0.002,60956.0,60944.0,0.16074033]
[1722649180364,0.002,60956.0,60945.0,0.1]
[1722649180365,0.17040187,60955.0,60945.0,0.1]
[1722649180539,0.17040187,60955.0,60946.0,0.16074034]
[1722649180746,0.17040187,60955.0,60947.0,0.1]
[1722649180950,0.002,60953.0,60948.0,0.16074034]
[1722649181131,0.002,60953.0,60949.0,0.1]
[1722649181331,0.002,60953.0,60950.0,0.15745924]
[1722649181559,0.002,60953.0,60951.0,0.1]
[1722649181900,0.002,60953.0,60952.0,0.15745924]
[1722649182094,0.002,60953.0,60952.0,0.25745924]
[1722649183277,0.002,60958.0,60952.0,0.25745924]
[1722649183529,0.002,60964.0,60954.0,0.1486]
[1722649183764,0.002,60965.0,60955.0,0.26073982]
[1722649183971,0.00083,60967.0,60955.0,0.26073982]
[1722649184372,0.00083,60967.0,60960.0,0.07875194]
[1722649184562,0.00083,60967.0,60961.0,0.16073948]
[1722649184766,0.00083,60967.0,60962.0,0.1]
[1722649184975,0.00283,60967.0,60963.0,0.15745924]
[1722649185183,0.00083,60967.0,60964.0,0.1032802]
[1722649185381,0.00083,60967.0,60965.0,0.15745924]
[1722649185382,0.1703601,60966.0,60965.0,0.15745924]
[1722649185584,0.002,60966.0,60965.0,0.25745924]
[1722649185715,0.002,60966.0,60965.0,0.15745924]
[1722649185903,0.00083,60967.0,60954.0,0.2486]
[1722649185904,0.002,60960.0,60954.0,0.2486]
[1722649186098,0.00083,60967.0,60955.0,0.25745924]
[1722649186099,0.002,60963.0,60955.0,0.25745924]
[1722649186300,0.002,60961.0,60955.0,0.25745924]
[1722649187938,0.002,60963.0,60955.0,0.25745924]
[1722649188274,0.00083,60967.0,60959.0,0.32786069]
[1722649188473,0.00083,60967.0,60966.0,0.07875194]
[1722649188720,0.00083,60967.0,60966.0,0.42787187]
[1722649189064,0.00083,60967.0,60966.0,0.52787187]
[1722649189564,0.00083,60967.0,60966.0,0.44911993]
[1722649189774,0.00283,60967.0,60966.0,0.44911993]
[1722649190681,0.010175,60973.0,60971.0,0.1425]
[1722649190887,0.010175,60973.0,60972.0,0.3787]
[1722649191095,0.010175,60973.0,60972.0,0.1]
[1722649191632,0.010175,60973.0,60972.0,0.17875194]
[1722649191835,0.010175,60973.0,60972.0,0.1]
[1722649192577,0.010175,60973.0,60972.0,0.25745924]
[1722649195821,0.010175,60973.0,60965.0,0.08875194]
[1722649195822,0.010175,60973.0,60969.0,0.10344027]
[1722649196024,0.002,60957.0,60951.0,0.15745924]
[1722649196226,0.002,60960.0,60952.0,0.00328121]
[1722649196405,0.002,60960.0,60953.0,0.15745924]
[1722649196604,0.002,60967.0,60954.0,0.0820328]
[1722649196804,0.00761643,60966.0,60956.0,0.1463]
[1722649197028,0.002,60967.0,60956.0,0.1463]
[1722649197029,0.002,60967.0,60957.0,0.16073979]
[1722649197426,0.0032664,60972.0,60957.0,0.16073979]
[1722649197427,0.002,60964.0,60957.0,0.16073979]
[1722649197826,0.002,60964.0,60957.0,0.15745924]
[1722649198055,0.002,60961.0,60957.0,0.15745924]
[1722649198214,0.002,60960.0,60957.0,0.15745924]
[1722649198438,0.002,60960.0,60951.0,0.1]
[1722649198439,0.002,60953.0,60949.0,0.1463]
[1722649198632,0.002,60951.0,60950.0,0.15745924]
[1722649199073,0.00157439,60962.0,60950.0,0.15745924]
[1722649199074,0.002,60953.0,60950.0,0.15745924]
[1722649199248,0.002,60951.0,60950.0,0.15745924]
[1722649199751,0.002,60951.0,60950.0,0.25745924]
[1722649200367,0.00157439,60963.0,60943.0,0.063]
[1722649200368,0.002,60948.0,60943.0,0.063]
[1722649200604,0.002,60948.0,60944.0,0.15745924]
[1722649200779,0.00484079,60955.0,60944.0,0.15745924]
[1722649200780,0.002,60946.0,60944.0,0.15745924]
[1722649201246,0.002,60946.0,60937.0,0.063]
[1722649201247,0.002,60942.0,60937.0,0.063]
[1722649201430,0.002,60948.0,60938.0,0.15745924]
[1722649201625,0.002,60940.0,60939.0,0.07875194]
[1722649201831,0.002,60940.0,60939.0,0.15745924]
[1722649202030,0.002,60940.0,60933.0,0.0833]
[1722649202278,0.00157439,60953.0,60934.0,0.15745924]
[1722649202279,0.002,60939.0,60934.0,0.15745924]
[1722649202401,0.002,60950.0,60934.0,0.23621118]
[1722649202611,0.17043245,60949.0,60941.0,0.07875194]
[1722649202812,0.00157439,60960.0,60943.0,0.063]
[1722649202813,0.002,60953.0,60943.0,0.063]
[1722649203043,0.47451164,60953.0,60944.0,0.15745924]
[1722649203237,0.00720504,60952.0,60944.0,0.15745924]
[1722649203440,0.002,60956.0,60946.0,0.07875194]
[1722649203780,0.002,60947.0,60946.0,0.15745924]
[1722649204030,0.002,60943.0,60937.0,0.063]
[1722649204298,0.002,60939.0,60938.0,0.15745924]
[1722649204504,0.00157439,60952.0,60939.0,0.1]
[1722649204505,0.002,60940.0,60939.0,0.1]
[1722649204703,0.002,60940.0,60939.0,0.25745924]
[1722649206735,0.002,60932.0,60926.0,0.0833]
[1722649206932,0.002,60932.0,60927.0,0.15745924]
[1722649207150,0.00157439,60937.0,60927.0,0.15745924]
[1722649207151,0.002,60930.0,60927.0,0.15745924]
[1722649207357,0.00357439,60942.0,60927.0,0.23621118]
[1722649207578,0.00357439,60942.0,60934.0,0.07875194]
[1722649207579,0.17044868,60941.0,60934.0,0.07875194]
[1722649207776,0.12789079,60951.0,60934.0,0.07875194]
[1722649207777,0.002,60936.0,60935.0,0.15745924]
[1722649207999,0.002,60939.0,60935.0,0.15745924]
[1722649208409,0.002,60939.0,60926.0,0.0833]
[1722649208614,0.17044187,60938.0,60926.0,0.1833]
[1722649208814,0.12308,60936.0,60919.0,0.1404]
[1722649209029,0.13963642,60937.0,60920.0,0.15745924]
[1722649209030,0.123086,60933.0,60920.0,0.15745924]
[1722649209231,0.002,60923.0,60920.0,0.15745924]
[1722649209385,0.002,60925.0,60920.0,0.15745924]
[1722649210452,0.0032664,60932.0,60921.0,0.1]
[1722649210453,0.002,60922.0,60921.0,0.1]
[1722649210589,0.002,60922.0,60914.0,0.00801813]
[1722649210792,0.002,60915.0,60914.0,0.15745924]
[1722649211163,0.002,60915.0,60914.0,0.25745924]
[1722649211368,0.002,60908.0,60907.0,0.0628]
[1722649211560,0.002,60911.0,60902.0,0.0776]
[1722649211761,0.002,60909.0,60903.0,0.00789032]
[1722649212008,0.002,60912.0,60907.0,0.23621118]
[1722649212181,0.002,60914.0,60907.0,0.23621118]
[1722649212538,0.002,60914.0,60907.0,0.15745924]
[1722649212950,0.002,60909.0,60908.0,0.1]
[1722649213150,0.0032664,60917.0,60906.0,0.00922]
[1722649213151,0.002,60907.0,60906.0,0.00922]
[1722649213352,0.1284044,60907.0,60906.0,0.00922]
[1722649213614,0.0052664,60907.0,60906.0,0.00922]
[1722649213823,0.002,60907.0,60906.0,0.00922]
[1722649215453,0.002,60909.0,60906.0,0.00922]
[1722649215657,0.002,60907.0,60906.0,0.00922]
[1722649216069,0.0627,60918.0,60906.0,0.00922]
[1722649216070,0.002,60911.0,60906.0,0.16667924]
[1722649216278,0.123109,60922.0,60908.0,0.1417]
[1722649216279,0.002,60922.0,60908.0,0.1417]
[1722649216500,0.002,60922.0,60915.0,0.07875194]
[1722649216703,0.0611,60932.0,60915.0,0.07875194]
[1722649216704,0.002,60918.0,60916.0,0.15745924]
[1722649217131,0.002,60917.0,60916.0,0.15745924]
[1722649217486,0.1263564,60931.0,60916.0,0.15745924]
[1722649217487,0.002,60922.0,60916.0,0.15745924]
[1722649217971,0.002,60922.0,60917.0,0.08203478]
[1722649218113,0.0611,60932.0,60917.0,0.08203478]
[1722649218114,0.002,60926.0,60918.0,0.15745924]
[1722649218309,0.002,60930.0,60919.0,0.00328268]
[1722649218513,1.2725,60936.0,60929.0,0.2332]
[1722649218735,0.47251164,60935.0,60931.0,0.07875194]
[1722649219066,0.002,60937.0,60929.0,0.2332]
[1722649219067,0.002,60937.0,60932.0,0.23621118]
[1722649219285,0.246086,60955.0,60934.0,0.07875194]
[1722649219286,0.002,60945.0,60934.0,0.07875194]
[1722649219522,0.00781449,60953.0,60935.0,0.16074111]
[1722649219523,0.002,60946.0,60935.0,0.16074111]
[1722649219729,0.002,60945.0,60936.0,0.1]
[1722649219934,0.002,60945.0,60937.0,0.15745924]
[1722649220134,0.0032664,60951.0,60937.0,0.15745924]
[1722649220135,0.002,60942.0,60938.0,0.1]
[1722649220335,0.002,60942.0,60939.0,0.15745924]
[1722649220548,0.002,60942.0,60932.0,0.1417]
[1722649220744,0.002,60942.0,60933.0,0.15745924]
[1722649221352,0.002,60934.0,60933.0,0.15745924]
[1722649222131,0.0032664,60947.0,60933.0,0.15745924]
[1722649222132,0.002,60936.0,60933.0,0.15745924]
[1722649222904,0.002,60934.0,60933.0,0.15745924]
[1722649223502,0.002,60936.0,60933.0,0.15745924]
[1722649223718,0.002,60942.0,60933.0,0.15745924]
[1722649223916,0.17044653,60941.0,60934.0,0.0820339]
[1722649224045,0.002,60945.0,60935.0,0.15745924]
[1722649224263,0.002,60945.0,60936.0,0.10328173]
[1722649224463,0.0032664,60953.0,60937.0,0.15745924]
[1722649224464,0.002,60942.0,60937.0,0.15745924]
[1722649224681,0.13985194,60941.0,60923.0,0.00803025]
[1722649224886,0.002,60922.0,60918.0,0.0656]
[1722649225241,0.13961692,60940.0,60918.0,0.0656]
[1722649225242,0.002,60924.0,60919.0,0.15745924]
[1722649225515,0.002,60936.0,60919.0,0.28865455]
[1722649225716,0.30683426,60935.0,60919.0,0.28865455]
[1722649225898,0.002,60929.0,60919.0,0.20661993]
[1722649226308,0.002,60929.0,60920.0,0.07875194]
[1722649226473,0.002,60932.0,60928.0,0.07875194]
[1722649226678,0.17046095,60931.0,60929.0,0.15745924]
[1722649226884,0.002,60936.0,60929.0,0.15745924]
[1722649227082,0.002,60932.0,60929.0,0.15745924]
[1722649227281,0.002,60932.0,60922.0,0.1]
[1722649227444,0.002,60926.0,60923.0,0.15745924]
[1722649227649,0.002,60926.0,60924.0,0.1]
[1722649227884,0.002,60926.0,60925.0,0.15745924]
[1722649228060,0.002,60926.0,60925.0,0.25745924]
[1722649228277,0.002,60928.0,60925.0,0.25745924]
[1722649228604,0.17047059,60927.0,60925.0,0.25745924]
[1722649228806,0.002,60926.0,60925.0,0.25745924]
[1722649229045,0.002,60938.0,60925.0,0.25745924]
[1722649229246,0.00785301,60944.0,60932.0,0.0804]
[1722649229247,0.30682129,60937.0,60932.0,0.0804]
[1722649229531,0.002,60947.0,60933.0,0.22265924]
[1722649229724,0.13833842,60946.0,60939.0,0.07875194]
[1722649229933,0.0809,60957.0,60936.0,0.04916069]
[1722649229934,0.002,60947.0,60940.0,0.15745924]
[1722649230332,0.17041883,60946.0,60940.0,0.15745924]
[1722649230535,0.002,60942.0,60940.0,0.15745924]
[1722649231206,0.17042842,60941.0,60940.0,0.15745924]
[1722649231457,0.002,60942.0,60940.0,0.15745924]